[Event "Slovakian-ch Youth 2022"]
[Site "Lubovna"]
[Date "2022.05.23"]
[Round "3.7"]
[White "Nadzamova, Viktoria"]
[Black "Kuna, Patrik"]
[Result "1-0"]
[ECO "A08"]
[WhiteElo "2135"]
[BlackElo "1811"]
[Annotator "TA"]
[PlyCount "85"]
[EventDate "2022.05.22"]
[EventCountry "SVK"]
[SourceTitle "playchess.com"]
[Source "ChessBase"]
[SourceQuality "1"]
[TimeControl "40/5400+30:1800+30"]

{[%evp 16,85,0,0,0,22,74,78,118,110,116,10,22,11,4,2,33,-86,0,0,0,-71,49,61,58,-43,61,33,50,-670,405,418,399,391,527,516,528,527,551,525,582,579,506,402,398,386,399,393,376,394,385,394,574,570,738,737,751,737,768,762,805,805,790,790,787,784,774,774,768,765,956,951]} 1. Nf3 {[%emt 0:09:01]} c5 {[%emt 0:01:37]} 2. g3 {[%emt 0:00:35]} Nc6 {[%emt 0:01:52]} 3. Bg2 {[%emt 0:00:35]} Nf6 {[%emt 0:02:16]} 4. O-O {[%emt 0:00:57]} g6 {[%emt 0:00:24]} 5. d3 {[%emt 0:02:34]} Bg7 {[%emt 0:03:59]} 6. Nbd2 {[%emt 0:11:56]} O-O {[%emt 0:02:55]} 7. Re1 {[%emt 0:06:55]} d5 {[%emt 0:03:48]} 8. e4 {[%emt 0:08:50]} dxe4 {[%emt 0:05:52]} 9. dxe4 {[%emt 0:00:12]} Bg4 {[%emt 0:05:21] A08: King's Indian Attack.} 10. h3 {[%emt 0:03:00]} Be6 {[%emt 0:08:28]} (10... Bd7 $11 {keeps the balance.}) 11. Ng5 $16 {[%emt 0:04:50]} Qd7 {[%emt 0:03:53] [#] White is better.} 12. e5 $146 {[%emt 0:05:42]} ({Predecessor:} 12. c3 Rad8 13. Nxe6 Qxe6 14. f4 Rd3 15. Qe2 Rxg3 16. Nf1 Qxh3 17. Nxg3 Qxg3 18. Qf2 Qxf2+ 19. Kxf2 {0-1 (49) Lind,J (2231)-Mansson,P (2076) Lund 2010}) 12... Nh5 {[%emt 0:25:54]} 13. Bf3 {[%emt 0:14:05]} (13. Nde4 $16) 13... Nxe5 {[%emt 0:15:42]} (13... Bxh3 $2 14. Nxh3 (14. Bxh5 gxh5 15. Qxh5 Bf5 $17) 14... Nxe5 15. Bg2 $18) 14. Bxh5 {[%emt 0:00:36]} gxh5 {[%emt 0:00:02]} 15. Nxe6 {[%emt 0:11:56]} (15. Qxh5 Bf5 16. Ngf3 Nc6 $17) 15... fxe6 {[%emt 0:08:13]} 16. f4 {[%emt 0:06:51]} (16. Qxh5 $14 {was the only good move.} Qd4 17. Qe2) 16... Rad8 {[%emt 0:06:35]} 17. Qxh5 $11 {[%emt 0:01:09]} (17. fxe5 $2 Qd4+ 18. Kh1 Rf2 $19) 17... Qd4+ {[%emt 0:01:00]} 18. Kg2 {[%emt 0:02:50] [#]} (18. Kh1 $11) 18... Nc4 {[%emt 0:00:47]} (18... Rf5 19. Qe2 Qd5+ 20. Kg1 $11) (18... Qd5+ $1 $17 19. Kh2 Nc6) 19. Nf3 $14 {[%emt 0:00:58]} (19. Rxe6 $2 Nxd2 20. Re2 Ne4 $19) 19... Qd5 {[%emt 0:00:48]} 20. Qg4 {[%emt 0:00:23]} (20. Qxd5 $14 exd5 21. Ng5 (21. Rxe7 Rfe8 $14)) 20... e5 {[%emt 0:00:31]} ({Black should try} 20... Rf6 $1 $15 21. Qg5 (21. b3 $2 Rg6 $17) 21... Qc6) 21. f5 $40 {[%emt 0:03:41][%mdl 128] White attacks.} e4 {[%emt 0:00:29]} 22. Rxe4 {[%emt 0:00:22][%mdl 8192]} (22. Qxe4 $14 Rxf5 23. Qxd5+ Rfxd5 24. Re4 (24. Rxe7 Rd1 $11)) 22... Rxf5 $4 {[%emt 0:00:33][%mdl 8192]} 23. Bh6 $1 $18 {[%emt 0:00:40][%csl Gh6][%cal Rg4g7]} ({And not} 23. Rxc4 {[#]} Rxf3 $1 24. Qe4 Rf5 $15) 23... Rf7 {[%emt 0:00:26][%cal Od8d6]} 24. Rxc4 {[%emt 0:00:47] aiming for Rf4.} Qxf3+ {[%emt 0:00:32]} 25. Qxf3 {[%emt 0:00:08]} Rxf3 {[%emt 0:00:24]} 26. Bxg7 {[%emt 0:00:21]} Rf5 {[%emt 0:00:18]} 27. Bh6 {[%emt 0:00:19] Against Rd2+} Rd6 {[%emt 0:00:28]} 28. Rg4+ {[%emt 0:00:41]} Kf7 {[%emt 0:00:17]} 29. Rf4 {[%emt 0:00:54]} Rd2+ {[%emt 0:00:24]} 30. Kf3 {[%emt 0:00:35]} Rxf4+ {[%emt 0:00:11]} 31. Bxf4 {[%emt 0:00:10]} ({Less strong is} 31. gxf4 Rxc2 32. b3 b6 $18) 31... Rxc2 {[%emt 0:00:04][%mdl 4096] Endgame KRB-KR} 32. Be5 {[%emt 0:00:15]} b5 {[%emt 0:00:38]} 33. a3 {[%emt 0:00:49]} c4 {[%emt 0:00:49]} (33... a6 $142 34. Rf1 a5) 34. Re1 {[%emt 0:01:28] White is clearly winning.} a5 {[%emt 0:00:22]} 35. Re2 {[%emt 0:00:28]} Rc1 {[%emt 0:00:26]} 36. Bc3 {[%emt 0:00:18]} Rh1 {[%emt 0:01:24]} 37. Kg4 {[%emt 0:00:36]} Rd1 {[%emt 0:00:45]} 38. Bxa5 {[%emt 0:00:36]} Rd4+ {[%emt 0:00:31]} 39. Kf5 {[%emt 0:00:49]} Rd3 {[%emt 0:00:11]} 40. Kf4 {[%emt 0:00:14]} Rd4+ {[%emt 0:00:26]} 41. Re4 {[%emt 0:30:08]} Rd3 {[%emt 0:30:26]} 42. Bc3 {[%emt 0:00:33]} h5 {[%emt 0:00:00]} 43. h4 {[%emt 0:00:00] Weighted Error Value: White=0.47/Black=0.71} 1-0

[Event "Slovakian-ch Youth 2022"]
[Site "Lubovna"]
[Date "2022.05.23"]
[Round "3.7"]
[White "Tokarcik, Jan"]
[Black "Oruzinsky, Juraj"]
[Result "0-1"]
[ECO "C54"]
[WhiteElo "1313"]
[BlackElo "1656"]
[Annotator "NA RC COMBH"]
[PlyCount "74"]
[EventDate "2022.05.22"]
[EventCountry "SVK"]
[SourceTitle "playchess.com"]
[Source "ChessBase"]
[SourceQuality "1"]
[TimeControl "40/5400+30:1800+30"]

1. e4 {[%emt 0:00:04]} e5 {[%emt 0:00:10]} 2. Nf3 {[%emt 0:00:06]} Nc6 {[%emt 0:00:07]} 3. Bc4 {[%emt 0:00:06]} Bc5 {[%emt 0:00:13]} 4. c3 {[%emt 0:00:35]} Nf6 {[%emt 0:00:25]} 5. d4 {[%emt 0:00:41]} exd4 {[%emt 0:00:12]} 6. cxd4 {[%emt 0:01:01]} Bb4+ {[%emt 0:00:05]} 7. Nc3 {[%emt 0:01:02]} Nxe4 {[%emt 0:04:28]} 8. O-O {[%emt 0:02:18]} Bxc3 {[%emt 0:00:33]} 9. bxc3 {[%emt 0:00:37]} d5 {[%emt 0:00:25]} 10. Bd3 {[%emt 0:07:12]} O-O {[%emt 0:02:17]} 11. Bxe4 {[%emt 0:05:15]} dxe4 {[%emt 0:00:11]} 12. Ng5 {[%emt 0:07:05]} Bf5 {[%emt 0:01:55]} 13. Re1 {[%emt 0:03:49]} Qd5 {[%emt 0:04:38]} 14. Qb3 {[%emt 0:04:39]} Qxb3 {[%emt 0:01:01]} 15. axb3 {[%emt 0:00:16]} Rfe8 {[%emt 0:00:44]} 16. Bf4 {[%emt 0:15:25]} h6 {[%emt 0:03:07]} 17. Nh3 {[%emt 0:01:34]} Bxh3 {[%emt 0:00:13]} 18. gxh3 {[%emt 0:00:10]} Rac8 {[%emt 0:02:51]} 19. d5 Ne7 {[%emt 0:00:50]} 20. c4 {[%emt 0:13:44]} Ng6 {[%emt 0:00:37]} 21. Bg3 {[%emt 0:03:38]} a6 {[%emt 0:01:03]} 22. Re3 {[%emt 0:05:25]} f5 {[%emt 0:00:52]} 23. f4 {[%emt 0:01:30]} Nxf4 {[%emt 0:02:56]} 24. Bxf4 {[%emt 0:02:12]} g5 {[%emt 0:00:05]} 25. Rg3 {[%emt 0:03:52]} Kf7 {[%emt 0:00:25]} 26. Bd2 {[%emt 0:03:46]} f4 {[%emt 0:00:10]} 27. Rf1 {[%emt 0:01:08]} Kf6 {[%emt 0:00:52]} 28. Bxf4 {[%emt 0:15:00]} gxf4 {[%emt 0:00:09]} 29. Rxf4+ {[%emt 0:00:02]} Ke5 {[%emt 0:00:18]} 30. Rh4 {[%emt 0:00:44]} Kd4 {[%emt 0:00:26]} 31. Rxh6 {[%emt 0:01:54]} e3 {[%emt 0:01:09]} 32. Re6 {[%emt 0:00:56]} Rxe6 {[%emt 0:00:40]} 33. dxe6 {[%emt 0:00:12]} Re8 {[%emt 0:00:53]} 34. Rg6 {[%emt 0:00:32]} Kd3 {[%emt 0:00:20]} 35. Kf1 {[%emt 0:00:35]} Kd2 {[%emt 0:00:35]} 36. Rg2+ {[%emt 0:00:38]} Kd1 {[%emt 0:00:23]} 37. h4 {[%emt 0:00:43]} Rxe6 {[%emt 0:00:11]} 0-1

[Event "Slovakian-ch Youth 2022"]
[Site "Lubovna"]
[Date "2022.05.23"]
[Round "3.8"]
[White "Bidulsky, Matej"]
[Black "Rucek, Kristian"]
[Result "0-1"]
[ECO "C00"]
[WhiteElo "1800"]
[BlackElo "2128"]
[Annotator "TA"]
[PlyCount "72"]
[EventDate "2022.05.22"]
[EventCountry "SVK"]
[SourceTitle "playchess.com"]
[Source "ChessBase"]
[SourceQuality "1"]
[TimeControl "40/5400+30:1800+30"]

{[%evp 9,72,-7,-4,-12,-9,-39,-35,-59,-52,-64,-39,-50,-43,-49,-54,-88,-89,-77,-86,-109,-66,-142,-146,-142,-136,-136,-108,-156,-129,-167,-163,-118,-79,-89,-19,-22,46,39,46,53,68,-51,-57,-44,-55,-47,-48,-54,-70,-46,-57,-67,-45,-506,-456,-689,-687,-682,-662,-591,-566,-5193,-4716,-2412,-2285]} 1. e4 {[%emt 0:05:51][%cal Be2e4,Be4d5][%mdl 32]} e6 {[%emt 0:00:08]} 2. c4 {[%emt 0:00:06]} d5 {[%emt 0:00:58]} 3. cxd5 {[%emt 0:00:10]} exd5 {[%emt 0:00:09]} 4. exd5 {[%emt 0:00:24]} Nf6 {[%emt 0:00:18]} 5. Bb5+ {[%emt 0:00:07]} Nbd7 {[%emt 0:00:51]} 6. Nc3 {[%emt 0:01:50] C00: French: Unusual White 2nd moves.} a6 {[%emt 0:00:27]} 7. Qe2+ {[%emt 0:00:26]} Be7 {[%emt 0:00:25]} 8. d6 {[%emt 0:00:07] Black is slightly better.} cxd6 {[%emt 0:00:06]} ({Reject} 8... axb5 9. dxe7 Qxe7 10. Nxb5 $11) 9. Bc4 {[%emt 0:00:35] [#]} O-O $146 {[%emt 0:00:36][%cal Od6d5]} ({Predecessor:} 9... Nb6 10. Bb3 Bg4 11. Nf3 O-O 12. O-O d5 13. d4 h6 14. Qd3 Rc8 15. Ne5 Be6 {1-0 (22) Rincon,J (1901)-Sadeghi,P (1777) Geneve 2020}) 10. d4 {[%emt 0:01:05]} b5 {[%emt 0:16:47][%cal Bb7b5,Bb5b4][%mdl 32]} 11. Bd3 {[%emt 0:04:01]} Re8 {[%emt 0:08:42]} 12. Nh3 {[%emt 0:01:00]} b4 {[%emt 0:02:21]} 13. Nd1 {[%emt 0:05:02]} Nf8 {[%emt 0:01:38]} 14. Ne3 {[%emt 0:02:36] Prevents Bg4.} d5 {[%emt 0:01:33]} 15. Nf4 {[%emt 0:08:59]} (15. Ng5 $15) 15... Bd6 $17 {[%emt 0:02:24]} 16. Nh5 {[%emt 0:03:22]} g6 {[%emt 0:06:15]} 17. Nxf6+ {[%emt 0:04:37]} Qxf6 {[%emt 0:00:05]} 18. O-O {[%emt 0:02:34]} (18. Kf1 $142) 18... Qxd4 {[%emt 0:19:18] Black is more active.} 19. Rd1 {[%emt 0:02:38]} Qe5 {[%emt 0:00:30]} 20. g3 {[%emt 0:00:30]} Bb7 {[%emt 0:14:01] And now ...d4 would win.} 21. Qf3 {[%emt 0:00:30]} Nd7 {[%emt 0:00:30]} (21... h5 $17 {...Ne6 is the strong threat.} 22. Bc2 Bc5) 22. Bc4 $11 {[%emt 0:01:50]} Nb6 {[%emt 0:01:21]} ({Better is} 22... dxc4 $11 23. Qxb7 Nc5 24. Qxb4 Nb3 $1 25. Rxd6 Nxa1) 23. Ng4 $14 {[%emt 0:02:12]} Qe7 {[%emt 0:03:04]} 24. Nf6+ {[%emt 0:00:39]} Kg7 {[%emt 0:00:09] [#]} 25. Bg5 {[%emt 0:00:40]} dxc4 $15 {[%emt 0:03:04]} 26. Nxe8+ {[%emt 0:00:29]} Rxe8 {[%emt 0:00:37] The board is on fire.} 27. Bxe7 {[%emt 0:00:18]} Bxf3 {[%emt 0:00:06]} 28. Rxd6 {[%emt 0:00:07]} Rxe7 {[%emt 0:02:05]} 29. Rxb6 {[%emt 0:00:06][%mdl 4096] Endgame KRR-KRB} a5 {[%emt 0:05:28][%cal Ba6a5,Ba5a4][%mdl 32]} 30. Rb5 {[%emt 0:00:23]} Re2 {[%emt 0:00:07]} 31. Rb1 {[%emt 0:02:05][%mdl 8192] This move loses the game for White.} (31. b3 $1 $15 c3 32. Rxa5) 31... Be4 $19 {[%emt 0:03:04] Black is clearly winning.} 32. Re5 {[%emt 0:00:59]} (32. Rc1 $142 Rxb2 33. Rxa5) 32... Bxb1 {[%emt 0:00:31]} 33. Rxe2 {[%emt 0:00:08] Hoping for Re5.} Bxa2 {[%emt 0:00:02] Threatens to win with ...c3.} 34. Re5 {[%emt 0:00:51]} a4 {[%emt 0:01:03]} 35. Kf1 {[%emt 0:02:43]} c3 {[%emt 0:00:46]} 36. bxc3 {[%emt 0:01:12]} b3 {[%emt 0:00:06] Weighted Error Value: White=0.70/Black=0.11 (very precise)} 0-1

[Event "Slovakian-ch Youth 2022"]
[Site "Lubovna"]
[Date "2022.05.23"]
[Round "3.8"]
[White "Ammer, Erik"]
[Black "Vargosko, Juraj"]
[Result "0-1"]
[ECO "B01"]
[WhiteElo "1320"]
[BlackElo "1640"]
[Annotator "NA RC COMBH"]
[PlyCount "96"]
[EventDate "2022.05.22"]
[EventCountry "SVK"]
[SourceTitle "playchess.com"]
[Source "ChessBase"]
[SourceQuality "1"]
[TimeControl "40/5400+30:1800+30"]

1. e4 {[%emt 0:00:08]} d5 {[%emt 0:01:06]} 2. exd5 {[%emt 0:00:44]} Nf6 {[%emt 0:00:15]} 3. Nc3 {[%emt 0:00:35]} Nxd5 {[%emt 0:01:19]} 4. Nxd5 {[%emt 0:00:09]} Qxd5 {[%emt 0:05:23]} 5. d4 {[%emt 0:00:35]} Nc6 {[%emt 0:00:13]} 6. Nf3 {[%emt 0:00:14]} Bg4 {[%emt 0:00:54]} 7. Be2 {[%emt 0:00:24]} O-O-O {[%emt 0:17:10]} 8. Be3 {[%emt 0:02:53]} e5 {[%emt 0:10:48]} 9. Nxe5 {[%emt 0:11:51]} Bxe2 {[%emt 0:02:01]} 10. Qxe2 {[%emt 0:01:31]} Nxe5 {[%emt 0:00:22]} 11. dxe5 {[%emt 0:00:15]} Qxg2 {[%emt 0:01:02]} 12. Rf1 {[%emt 0:02:52]} Qe4 {[%emt 0:03:18]} 13. f4 {[%emt 0:01:40]} Be7 {[%emt 0:01:11]} 14. Rd1 {[%emt 0:01:19]} Bh4+ {[%emt 0:04:40]} 15. Bf2 {[%emt 0:02:06]} Rxd1+ {[%emt 0:02:04]} 16. Kxd1 {[%emt 0:00:11]} Rd8+ {[%emt 0:02:55]} 17. Ke1 {[%emt 0:00:34]} Qxf4 {[%emt 0:02:13]} 18. Bxh4 {[%emt 0:01:10]} Qxh4+ {[%emt 0:00:23]} 19. Qf2 {[%emt 0:00:37]} Qb4+ {[%emt 0:02:05]} 20. c3 {[%emt 0:01:26]} Qe4+ {[%emt 0:12:14]} 21. Qe2 {[%emt 0:01:46]} Qd5 {[%emt 0:01:55]} 22. c4 {[%emt 0:03:01]} Qa5+ {[%emt 0:00:30]} 23. Kf2 {[%emt 0:04:37]} Rd2 {[%emt 0:00:10]} 24. Re1 {[%emt 0:00:09]} Qc5+ {[%emt 0:00:39]} 25. Kf1 {[%emt 0:00:32]} Rxe2 {[%emt 0:00:10]} 26. Rxe2 {[%emt 0:00:05]} Qxc4 {[%emt 0:00:03]} 27. b3 {[%emt 0:00:14]} Qf4+ {[%emt 0:00:07]} 28. Ke1 {[%emt 0:00:13]} Kd7 {[%emt 0:00:27]} 29. Rd2+ {[%emt 0:00:42]} Qxd2+ {[%emt 0:00:16]} 30. Kxd2 Ke6 31. Kd3 {[%emt 0:01:16]} Kxe5 {[%emt 0:00:39]} 32. Ke3 {[%emt 0:00:27]} f5 {[%emt 0:00:05]} 33. h4 {[%emt 0:00:20]} f4+ {[%emt 0:00:13]} 34. Kf3 {[%emt 0:00:04]} Kf5 {[%emt 0:00:06]} 35. h5 {[%emt 0:00:14]} g5 {[%emt 0:00:19]} 36. a4 {[%emt 0:00:33]} g4+ {[%emt 0:00:04]} 37. Kg2 {[%emt 0:00:07]} Kg5 {[%emt 0:00:12]} 38. a5 {[%emt 0:00:08]} Kxh5 {[%emt 0:00:05]} 39. b4 {[%emt 0:00:13]} Kg5 {[%emt 0:00:16]} 40. b5 {[%emt 0:00:12]} h5 {[%emt 0:00:07]} 41. Kh2 {[%emt 0:30:07]} b6 {[%emt 0:30:08]} 42. a6 {[%emt 0:02:05]} h4 {[%emt 0:00:15]} 43. Kg2 {[%emt 0:00:08]} f3+ {[%emt 0:00:11]} 44. Kh2 {[%emt 0:00:09]} g3+ {[%emt 0:00:18]} 45. Kh3 {[%emt 0:00:39]} f2 {[%emt 0:00:31]} 46. Kg2 {[%emt 0:00:09]} Kh5 {[%emt 0:00:34]} 47. Kf1 {[%emt 0:00:32]} h3 {[%emt 0:00:31]} 48. Ke2 {[%emt 0:00:08]} h2 {[%emt 0:00:19]} 0-1

[Event "Slovakian-ch Youth 2022"]
[Site "Lubovna"]
[Date "2022.05.23"]
[Round "3.9"]
[White "Priechodsky, Radovan"]
[Black "Mederly, Jan"]
[Result "0-1"]
[ECO "B13"]
[WhiteElo "1965"]
[BlackElo "1446"]
[Annotator "TA"]
[PlyCount "66"]
[EventDate "2022.05.22"]
[EventCountry "SVK"]
[SourceTitle "playchess.com"]
[Source "ChessBase"]
[SourceQuality "1"]
[TimeControl "40/5400+30:1800+30"]

{[%evp 11,66,0,0,-9,-16,-3,-10,-9,-3,0,-9,-27,-16,-25,-16,-25,-12,-43,-30,-51,-35,-39,-50,-69,-72,-76,-56,-107,-99,-97,-98,-96,-99,-147,-159,-210,-131,-119,-127,-592,-602,-1281,-964,-956,-959,-943,-916,-1050,-793,-1593,-1318,-5389,-5389,-29996,-29997,-29997,-29998]} 1. c4 {[%emt 0:00:40]} c6 {[%emt 0:02:46]} 2. e4 {[%emt 0:04:19]} d5 {[%emt 0:00:36]} 3. cxd5 {[%emt 0:00:46]} cxd5 {[%emt 0:00:26]} 4. exd5 {[%emt 0:00:23]} Nf6 {[%emt 0:02:52]} 5. Nc3 {[%emt 0:03:00]} Nxd5 {[%emt 0:00:54]} 6. d4 {[%emt 0:00:16]} Nc6 {[%emt 0:01:25] 6...e6 is vanishing.} 7. Bc4 {[%emt 0:01:05] B13: Caro-Kann: Exchange Variation and Panov-Botvinnik Attack.} Be6 {[%emt 0:09:41]} 8. Bb3 $1 {[%emt 0:02:21]} g6 {[%emt 0:00:56]} 9. Nf3 {[%emt 0:01:07] The position is equal.} Bg7 {[%emt 0:06:02]} 10. O-O {[%emt 0:06:01]} O-O {[%emt 0:01:52] [#]} 11. Be3 $146 {[%emt 0:19:38]} ({Predecessor:} 11. Re1 Rc8 12. Bg5 Re8 13. h3 Nxc3 14. bxc3 Bd5 15. Rc1 Na5 16. Bxd5 Qxd5 17. Bxe7 {1-0 (46) Bombek,P (2183)-Walek,P (2276) Ceske Budejovice 2021}) 11... Nxe3 {[%emt 0:24:55]} 12. fxe3 {[%emt 0:00:18] [#] Black must now prevent d5.} Bxb3 {[%emt 0:05:09]} 13. Qxb3 {[%emt 0:03:44]} Na5 {[%emt 0:02:25]} 14. Qc2 {[%emt 0:02:03]} Nc4 {[%emt 0:01:28]} 15. Rfe1 {[%emt 0:00:29]} Rc8 {[%emt 0:01:12]} 16. Rad1 {[%emt 0:01:47]} e6 {[%emt 0:02:58]} 17. b3 {[%emt 0:29:17]} Nd6 {[%emt 0:08:31]} 18. Qd3 {[%emt 0:01:48]} Qa5 {[%emt 0:05:22]} 19. Na4 {[%emt 0:02:17]} ({Better is} 19. Rc1 $15) 19... Rfd8 $17 {[%emt 0:02:17]} 20. Rc1 {[%emt 0:03:58]} Nf5 {[%emt 0:02:44][%cal Bd6f5,Bf5e7,Be7c6,Bc6d4,Bd4e2,Be2c1][%mdl 32]} 21. g4 {[%emt 0:07:34] Rxc8 is the strong threat.} Ne7 {[%emt 0:03:23]} 22. Rxc8 {[%emt 0:03:49]} (22. Nc3 $142) 22... Rxc8 {[%emt 0:00:11]} 23. e4 {[%emt 0:00:26]} (23. h3 $17) 23... b5 {[%emt 0:05:11]} 24. Nc5 {[%emt 0:01:06]} Nc6 {[%emt 0:01:36]} ({And not} 24... Qxa2 25. Qxb5 Qc2 26. e5 $15) 25. Rc1 $2 {[%emt 0:02:02][%mdl 8192] Now White is beyond hope.} (25. e5 $17 {is a better chance.}) 25... Qa3 $19 {[%emt 0:02:37]} ({Stronger than} 25... Qxa2 26. Nd7 $17) 26. Qc3 {[%emt 0:01:44] [#]} Bxd4+ $1 {[%emt 0:00:36][%mdl 512]} 27. Nxd4 {[%emt 0:00:57]} Nxd4 {[%emt 0:00:09]} 28. Kf1 {[%emt 0:00:21] Inhibits Ne2.} e5 {[%emt 0:03:52]} 29. b4 {[%emt 0:00:50]} Qxa2 {[%emt 0:00:38] ( -> ...Qe2+)} 30. Qg3 {[%emt 0:00:50]} Ne2 {[%emt 0:01:05]} 31. Qxe5 {[%emt 0:00:31]} Nxc1 {[%emt 0:00:25]} 32. Nd7 {[%emt 0:00:08]} Qe2+ {[%emt 0:00:33]} 33. Kg1 {[%emt 0:00:11]} Qe3+ {[%emt 0:00:15] Weighted Error Value: White=1.30/Black=0.31} 0-1

[Event "Slovakian-ch Youth 2022"]
[Site "Lubovna"]
[Date "2022.05.23"]
[Round "3.9"]
[White "Kluska, Lukas"]
[Black "Paholok, Adam"]
[Result "0-1"]
[ECO "A10"]
[WhiteElo "1215"]
[BlackElo "1449"]
[Annotator "NA RC COMBH"]
[PlyCount "80"]
[EventDate "2022.05.22"]
[EventCountry "SVK"]
[SourceTitle "playchess.com"]
[Source "ChessBase"]
[SourceQuality "1"]
[TimeControl "40/5400+30:1800+30"]

1. c4 {[%emt 0:00:45]} g6 {[%emt 0:00:16]} 2. d4 {[%emt 0:00:20]} c5 {[%emt 0:00:11]} 3. e3 {[%emt 0:01:35]} Bg7 {[%emt 0:00:14]} 4. Nf3 {[%emt 0:00:15]} d6 {[%emt 0:01:39]} 5. Be2 {[%emt 0:01:56]} Nf6 {[%emt 0:01:12]} 6. Nc3 {[%emt 0:00:28]} O-O {[%emt 0:00:17]} 7. O-O {[%emt 0:00:31]} Bg4 {[%emt 0:05:05]} 8. h3 {[%emt 0:01:38]} Bc8 {[%emt 0:00:18]} 9. dxc5 {[%emt 0:05:09]} dxc5 {[%emt 0:01:04]} 10. Nd5 {[%emt 0:00:43]} Nc6 {[%emt 0:01:23]} 11. Nxf6+ {[%emt 0:01:16]} Bxf6 {[%emt 0:00:11]} 12. e4 {[%emt 0:00:47]} Be6 {[%emt 0:01:06]} 13. Bh6 {[%emt 0:02:07]} Re8 {[%emt 0:00:58]} 14. Qc2 {[%emt 0:00:56]} Nd4 {[%emt 0:02:51]} 15. Nxd4 {[%emt 0:05:01]} Qxd4 {[%emt 0:00:27]} 16. Rfd1 {[%emt 0:01:19]} Qe5 {[%emt 0:02:40]} 17. f4 {[%emt 0:01:29]} Qxb2 {[%emt 0:00:56]} 18. Qxb2 {[%emt 0:00:12]} Bxb2 {[%emt 0:00:06]} 19. Rab1 {[%emt 0:00:10]} Bd4+ {[%emt 0:00:05]} 20. Kh2 {[%emt 0:00:31]} b6 {[%emt 0:00:16]} 21. Bd3 {[%emt 0:00:54]} Rad8 {[%emt 0:04:39]} 22. f5 {[%emt 0:01:53]} Bd7 {[%emt 0:01:07]} 23. Rf1 {[%emt 0:08:13]} Bxf5 {[%emt 0:01:16]} 24. exf5 {[%emt 0:01:03]} Be5+ {[%emt 0:00:07]} 25. Kh1 {[%emt 0:00:48]} Rxd3 {[%emt 0:00:08]} 26. fxg6 {[%emt 0:00:33]} hxg6 {[%emt 0:00:14]} 27. Rbd1 {[%emt 0:00:25]} Red8 {[%emt 0:00:46]} 28. Rxd3 {[%emt 0:01:32]} Rxd3 {[%emt 0:00:09]} 29. Kg1 {[%emt 0:00:07]} Bf6 {[%emt 0:01:43]} 30. Bf4 {[%emt 0:00:36]} Ra3 {[%emt 0:00:59]} 31. Rd1 {[%emt 0:01:04]} Bd4+ {[%emt 0:00:16]} 32. Kh2 {[%emt 0:00:12]} Rxa2 {[%emt 0:00:18]} 33. Bc7 {[%emt 0:00:33]} Rc2 {[%emt 0:00:31]} 34. Ra1 {[%emt 0:00:09]} Bxa1 {[%emt 0:00:07]} 35. Bb8 {[%emt 0:00:30]} Rxc4 {[%emt 0:00:37]} 36. Bxa7 {[%emt 0:00:07]} Be5+ {[%emt 0:00:10]} 37. Kg1 {[%emt 0:00:16]} Bc7 {[%emt 0:00:26]} 38. Kf2 {[%emt 0:00:34]} Rc2+ {[%emt 0:00:15]} 39. Kf3 {[%emt 0:00:22]} Ra2 {[%emt 0:00:05]} 40. Bxb6 {[%emt 0:00:09]} Bxb6 {[%emt 0:00:10]} 0-1